bitfinex-derivatives/quotes_ETHF0:USTF0_20251006
["timestamp","ask_amount","ask_price","bid_price","bid_amount"]
[1759771976587,0.37512563,4706.8,4706.7,0.3822]
[1759771976787,0.62972563,4706.8,4706.7,1.2745]
[1759771976989,0.4704404,4706.8,4706.7,1.2745]
[1759771977584,0.4704404,4706.8,4706.7,6.2745]
[1759771978585,0.4704404,4706.8,4706.7,1.2745]
[1759771979387,0.4704404,4706.8,4706.7,6.2745]
[1759771979685,0.4704404,4706.8,4706.7,1.2745]
[1759771979879,0.25692563,4706.8,4706.7,1.2745]
[1759771980083,0.72552287,4706.8,4706.7,1.2745]
[1759771980279,0.47092287,4706.8,4706.7,1.2745]
[1759771980783,0.47092287,4706.8,4706.7,6.2745]
[1759771980988,0.4121,4708.0,4707.9,0.3821]
[1759771981189,1.0438,4708.0,4707.9,0.63]
[1759771981389,1.0438,4708.0,4707.7,0.38211]
[1759771981685,0.8863,4707.9,4707.8,0.63001]
[1759771981990,0.88873411,4707.9,4707.8,1.27441]
[1759771982188,0.25703411,4707.9,4707.8,1.27441]
[1759771982489,0.88873411,4707.9,4707.8,0.38211]
[1759771982887,0.88873411,4707.9,4707.8,0.63001]
[1759771983587,0.88873411,4707.9,4707.8,0.38211]
[1759771983984,0.88873411,4707.9,4707.0,0.1554]
[1759771984192,0.5135,4707.7,4707.6,0.38212]
[1759771984389,0.3728,4707.3,4707.1,0.38217]
[1759771984587,0.8863,4706.6,4706.5,0.38222]
[1759771985387,0.8863,4706.6,4706.5,0.63012]
[1759771985692,0.8863,4706.6,4706.5,1.27452]
[1759771985892,0.8424,4707.0,4706.9,0.63008]
[1759771986089,0.8424,4707.0,4706.9,1.27448]
[1759771986290,1.2588,4707.0,4706.9,0.38218]
[1759771986590,0.5135,4706.8,4706.7,0.38219]
[1759771986794,0.8863,4706.8,4706.7,0.63009]
[1759771987094,0.8863,4706.8,4706.7,0.87529]
[1759771987288,0.8863,4706.8,4706.7,0.38219]
[1759771987590,0.8863,4706.8,4706.7,0.63009]
[1759771987990,0.8863,4706.8,4706.7,0.38219]
[1759771988184,0.8863,4706.8,4706.7,1.27449]
[1759771988382,0.2546,4707.3,4707.2,1.27446]
[1759771988691,0.3728,4707.7,4707.6,0.38213]
[1759771988887,0.21743411,4707.9,4707.8,0.38211]
[1759771989194,0.37523411,4707.9,4707.8,0.38211]
[1759771989487,0.3728,4707.8,4707.6,0.38212]
[1759771989694,0.37523411,4707.9,4707.8,0.38211]
[1759771990190,0.3728,4707.8,4707.5,0.3992]
[1759771990493,0.3728,4707.8,4707.7,0.38211]
[1759771990682,0.3728,4707.8,4707.7,0.3992]
[1759771991085,0.3728,4707.8,4707.6,0.38212]
[1759771991282,0.3728,4707.8,4707.7,0.38212]
[1759771991486,0.21743411,4707.9,4707.7,0.38212]
[1759771991487,0.00243411,4707.9,4707.7,0.78132]
[1759771991691,0.00243411,4707.9,4707.8,0.3992]
[1759771993194,0.4702491,4707.9,4707.8,0.3992]
[1759771994600,0.4702491,4707.9,4707.8,5.3992]
[1759771995092,0.4702491,4707.9,4707.8,0.3992]
[1759771995695,9.1e-06,4707.9,4707.8,5.3992]
[1759771995901,0.3728,4708.8,4708.7,0.38204]
[1759771996398,0.3728,4709.3,4709.2,0.38199]
[1759771996791,3.1605986,4709.3,4709.2,0.3841611]
[1759771996996,0.37517264,4709.3,4709.2,0.3841611]
[1759771997596,0.37517264,4709.3,4709.2,0.0021711]
[1759771997796,0.37517264,4709.3,4709.2,0.3841711]
[1759771998301,0.37517264,4709.3,4709.2,0.0021711]
[1759771999103,0.37517264,4709.3,4709.2,0.3751711]
[1759771999302,0.00237264,4709.3,4709.2,0.3751711]
[1759771999503,0.38957264,4709.3,4709.2,0.0021711]
[1759771999701,3.14827719,4709.3,4709.2,0.0021711]
[1759771999902,8.14827719,4709.3,4709.2,0.0021711]
[1759772002609,3.61207719,4709.3,4709.2,0.0021711]
[1759772002795,3.86247719,4709.3,4709.2,0.0021711]
[1759772004595,3.86247719,4709.3,4709.2,0.2588711]
[1759772004805,1.10377264,4709.3,4709.2,0.2588711]
[1759772005907,1.10377264,4709.3,4709.2,0.0021711]
[1759772007108,0.8874,4708.8,4708.7,0.38203]
[1759772007408,1.1014,4708.8,4708.7,0.38203]
[1759772007796,1.35262493,4708.8,4708.7,1.27483]
[1759772008108,1.35262493,4708.8,4708.7,1.27708116]
[1759772008109,0.46522493,4708.8,4708.7,1.27708116]
[1759772009609,0.71502493,4708.8,4708.7,1.27708116]
[1759772010498,1.35262493,4708.8,4708.7,0.90408116]
[1759772010819,1.35262493,4708.8,4708.7,0.00225116]
[1759772011301,1.35262493,4708.8,4708.7,0.89505116]
[1759772011302,0.71502493,4708.8,4708.7,0.89505116]
[1759772011509,0.46522493,4708.8,4708.7,0.89505116]
[1759772014207,0.46522493,4708.8,4708.7,5.89505116]
[1759772014414,0.00237264,4709.3,4709.2,1.2748]
[1759772015213,0.46738941,4709.3,4709.2,6.2748]
[1759772018715,0.46738941,4709.3,4709.2,1.2748]
[1759772018916,1.06608941,4709.3,4709.2,1.2748]
[1759772019611,0.46738941,4709.3,4709.2,1.2748]
[1759772020322,0.15,4710.0,4709.9,1.26454]
[1759772020615,1.0076,4710.0,4709.9,1.26454]
[1759772020807,0.8576,4710.0,4709.9,1.26454]
[1759772021212,0.85957562,4710.0,4709.9,1.26454]
[1759772021612,0.85957562,4710.0,4709.9,0.89364]
[1759772021813,1.01067562,4710.0,4709.9,0.89364]
[1759772022212,1.01067562,4710.0,4709.8,0.38194]
[1759772022512,1.01067562,4710.0,4709.0,1.10822]
[1759772022513,0.4977,4709.7,4709.6,0.38196]
[1759772022815,0.8576,4709.7,4709.6,0.63376]
[1759772024613,0.8576,4709.7,4709.6,1.26456]
[1759772025212,0.8576,4709.7,4709.6,0.89366]
[1759772025610,0.8576,4709.7,4709.6,1.26456]
[1759772026713,0.00197562,4710.0,4709.9,0.38194]
[1759772026908,0.85957562,4710.0,4709.9,1.26454]
[1759772028518,0.252,4708.9,4708.8,1.0812]
[1759772028717,0.8648,4709.4,4709.3,0.62489]
[1759772029017,0.8648,4709.4,4709.3,1.22379]
[1759772029718,0.252,4709.4,4709.3,1.22379]
[1759772030218,0.8648,4709.4,4709.3,1.22379]
[1759772030417,0.8648,4709.4,4709.3,0.86779]
[1759772030612,0.8648,4709.4,4709.3,0.62489]
[1759772030919,0.8648,4709.4,4709.3,0.38199]
[1759772031519,0.8648,4709.4,4709.1,0.382]
[1759772031820,1.0155,4709.0,4707.8,0.3821]
[1759772032013,0.8648,4707.8,4707.7,0.62502]
[1759772032314,0.8648,4707.8,4707.3,0.356]
[1759772032315,1.32883131,4707.8,4707.6,0.38212]
[1759772032514,0.1507,4708.0,4707.2,0.62506]
[1759772032515,0.8648,4707.3,4707.2,0.62506]
[1759772032717,0.3666,4707.2,4706.9,0.356]
[1759772032914,0.1507,4707.5,4706.9,0.60090891]
[1759772032915,0.8648,4707.0,4706.9,0.60090891]
[1759772033215,1.47953131,4707.0,4706.9,0.24490891]
[1759772033423,1.47953131,4707.0,4706.9,0.00200891]
[1759772034720,4.22517162,4707.0,4706.9,0.00200891]
[1759772035125,1.32883131,4707.0,4706.9,0.48780891]
[1759772035424,1.32883131,4707.0,4706.9,0.24490891]
[1759772036521,1.47953131,4707.0,4706.9,0.00200891]
[1759772036822,1.47953131,4707.0,4706.9,0.24490891]
[1759772037020,1.32883131,4707.0,4706.9,0.48780891]
[1759772037214,0.71603131,4707.0,4706.9,0.84380891]
[1759772037414,1.32883131,4707.0,4706.9,0.84380891]
[1759772037924,1.32883131,4707.0,4706.5,0.5215]
[1759772037925,0.8648,4706.6,4706.5,0.5215]
[1759772038114,1.32883131,4706.6,4706.5,0.5215]
[1759772038317,1.0155,4706.5,4706.4,0.38222]
[1759772038515,1.47953131,4706.5,4706.4,0.38222]
[1759772039015,0.71790322,4706.5,4706.4,1.22676259]
[1759772039719,1.08450322,4706.5,4706.4,1.22676259]
[1759772039919,3.78882335,4706.5,4706.4,0.38496259]
[1759772040225,4.25086916,4706.5,4706.4,0.00274259]
[1759772040417,4.25086916,4706.5,4706.4,0.24564259]
[1759772040817,4.25086916,4706.5,4706.4,0.00274259]
[1759772042018,4.25086916,4706.5,4706.4,0.24564259]
[1759772042222,1.47941772,4706.5,4706.4,0.00274259]
[1759772043223,4.19132095,4706.5,4706.4,0.00274259]
[1759772044626,3.82472095,4706.5,4706.0,0.5202]
[1759772044824,0.8648,4705.1,4704.9,0.38234]
[1759772045020,1.0155,4705.0,4704.9,0.38234]
[1759772045724,1.0155,4705.0,4704.9,0.00168879]
[1759772046625,3.78874338,4705.0,4704.9,0.00168879]
[1759772047226,0.8648,4705.0,4704.9,0.85972127]
[1759772047624,3.77288157,4705.0,4704.9,0.00168879]
[1759772047826,3.77288157,4705.0,4704.9,0.02603751]
[1759772048126,3.77288157,4705.0,4704.9,0.03415375]
[1759772048624,3.77288157,4705.0,4703.7,0.356]
[1759772048923,0.252,4704.2,4704.1,0.8418]
[1759772049223,0.466,4704.9,4704.8,0.4858]
[1759772049421,0.8326,4704.9,4704.8,0.8418]
[1759772049624,0.252,4704.9,4704.8,0.8418]
[1759772049823,0.6186,4704.9,4704.8,0.84429441]
[1759772050018,0.252,4704.9,4704.8,0.84429441]
[1759772050226,3.63414371,4704.9,4704.8,0.00249441]
[1759772050427,0.8648,4704.9,4704.8,0.24539441]
[1759772050627,0.8648,4704.9,4704.8,0.07920681]
[1759772051023,3.67693811,4704.9,4704.8,0.07920681]
[1759772051220,3.67693811,4704.9,4703.0,1.11244]
[1759772051221,0.252,4703.8,4703.7,0.2429]
[1759772051427,0.8648,4703.8,4703.7,0.2429]
[1759772052019,0.6128,4703.7,4703.6,0.2429]
[1759772052223,0.8648,4703.7,4703.6,0.00192778]
[1759772053734,3.82780682,4703.7,4703.6,0.00192778]
[1759772054330,0.1507,4703.0,4702.9,0.0212637]
[1759772054527,1.0155,4703.0,4702.9,0.0212637]
[1759772055031,1.0155,4703.0,4702.9,0.2641637]
[1759772055340,0.25430406,4703.0,4702.9,0.86493387]
[1759772055535,0.25430406,4703.0,4702.9,0.02313387]
[1759772055536,1.01780406,4703.0,4702.9,0.02313387]
[1759772055725,0.8648,4702.3,4702.2,0.38256]
[1759772056034,0.3666,4702.2,4700.8,0.356]
[1759772056235,0.3666,4702.2,4701.3,0.38263]
[1759772056535,2.97117592,4702.3,4701.4,0.73863]
[1759772056536,0.3666,4701.5,4701.4,0.73863]
[1759772056730,0.1507,4702.0,4701.4,0.74019965]
[1759772057033,0.3666,4701.8,4701.4,0.38419965]
[1759772057243,0.5173,4701.5,4701.4,0.00156965]
[1759772057431,0.7313,4701.5,4701.4,0.00156965]
[1759772057627,2.71197691,4701.5,4701.4,0.35756965]
[1759772057932,0.3666,4702.4,4702.3,0.38256]
[1759772058127,0.3666,4702.4,4702.3,0.75346]
[1759772058437,0.3666,4702.4,4701.5,1.11276]
[1759772058438,0.5371,4702.5,4701.9,0.3709]
[1759772058630,0.3809,4702.4,4702.2,0.38256]
[1759772058831,0.3809,4702.5,4702.4,0.38255]
[1759772059034,0.3809,4702.5,4702.4,0.75345]
[1759772059237,0.3809,4702.9,4702.8,0.38251]
[1759772059438,0.4889,4702.9,4702.5,0.38253]
[1759772059737,2.86990891,4702.9,4702.7,0.38252]
[1759772060034,0.3809,4702.8,4702.2,0.3709]
[1759772060234,0.3809,4702.7,4702.5,0.38253]
[1759772060537,3.11874091,4702.8,4702.7,0.38252]
[1759772060727,0.00230406,4703.0,4702.9,0.75341]
[1759772060931,0.38320406,4703.0,4702.8,0.38251]
[1759772061133,3.24461629,4703.0,4702.4,0.38254]
[1759772061333,0.15850406,4703.0,4702.8,0.38251]
[1759772061525,0.00230406,4703.0,4702.9,0.3709]
[1759772062037,0.38320406,4703.0,4702.9,0.3709]
[1759772062634,0.00230406,4703.0,4702.9,5.3709]
[1759772062842,0.38236,4704.8,4703.8,0.38243]
[1759772063029,0.3809,4704.2,4702.9,0.38311588]
[1759772063337,0.3809,4704.2,4702.1,0.95643]
[1759772063338,0.76334,4703.8,4703.5,0.02038244]
[1759772063540,0.3809,4703.6,4703.5,0.02038244]
[1759772063738,1.05637993,4703.6,4703.5,0.02038244]
[1759772063933,3.79816705,4703.6,4703.5,0.02038244]
[1759772064931,0.3809,4703.4,4702.0,0.5171]
[1759772065128,0.3809,4703.2,4702.5,0.5171]
[1759772065337,0.84137993,4703.1,4703.0,0.38249]
[1759772065838,0.84137993,4703.1,4703.0,0.75339]
[1759772066039,0.46047993,4703.1,4703.0,0.75339]
[1759772066242,0.46105318,4703.4,4703.2,0.38248]
[1759772066540,0.84195321,4703.3,4703.2,0.38248]
[1759772067144,0.3809,4703.2,4703.0,0.3709]
[1759772067443,0.84195321,4703.1,4703.0,0.38249]
[1759772067837,0.84195321,4703.1,4703.0,0.75339]
[1759772068137,0.84195321,4703.1,4701.9,0.95646]
[1759772068346,0.99815321,4703.0,4702.4,0.3709]
[1759772068638,0.46105321,4702.9,4702.3,0.3709]
[1759772068846,0.46105321,4702.9,4702.4,0.95638]
[1759772069042,0.46105321,4702.9,4702.5,0.3709]
[1759772069337,0.215,4702.8,4702.7,0.75342]
[1759772069542,0.67605321,4702.8,4702.7,0.75342]
[1759772070136,0.46105321,4702.8,4702.7,0.75342]
[1759772070344,0.46173558,4703.4,4703.3,0.75338]
[1759772070539,0.84263558,4703.4,4703.3,0.75338]
[1759772070740,3.57169685,4703.4,4702.1,0.3709]
[1759772070935,0.3809,4703.1,4703.0,0.3825]
[1759772071135,0.3809,4703.1,4702.4,0.95638]
[1759772071136,0.1562,4703.0,4702.8,0.38251]
[1759772071446,0.3809,4703.4,4703.3,0.38247]
[1759772071744,3.60189816,4703.4,4703.3,0.38247]
[1759772072242,0.3809,4703.3,4703.2,0.38248]
[1759772072443,0.8428681,4703.3,4703.2,0.38248]
[1759772072842,0.8428681,4703.3,4703.2,0.75338]
[1759772073048,0.8428681,4703.3,4702.6,1.32723]
[1759772073348,0.1562,4702.5,4702.1,0.3709]
[1759772073547,0.3809,4702.3,4702.2,0.38256]
[1759772073743,0.8428681,4702.3,4702.2,0.38256]
[1759772074840,0.4619681,4702.3,4702.2,0.75346]
[1759772075035,0.46290936,4702.6,4702.5,0.38254]
[1759772075347,0.46290936,4702.6,4702.5,0.75344]
[1759772077541,0.46290936,4702.6,4702.5,5.90234]
[1759772077741,0.46290936,4702.6,4702.5,0.38254]
[1759772077943,0.3568,4702.4,4702.2,0.38256]
[1759772078144,0.3568,4702.2,4701.9,0.38259]
[1759772078349,0.46290936,4702.1,4701.5,0.1562]
[1759772078550,0.3568,4702.1,4702.0,0.38258]
[1759772078843,0.82046577,4702.1,4702.0,0.38258]
[1759772080044,0.82046577,4702.1,4702.0,0.75678]
[1759772080245,0.82046577,4702.1,4702.0,0.38258]
[1759772080648,0.82046577,4702.1,4701.5,0.3742]
[1759772080947,0.82046577,4702.0,4701.9,0.38259]
[1759772081146,2.49609334,4702.0,4701.3,1.33078]
[1759772081347,0.82046577,4701.9,4701.8,0.3826]
[1759772081742,0.82046577,4701.9,4701.3,0.3742]
[1759772081743,0.82046577,4701.9,4701.6,0.38261]
[1759772081944,0.5073,4701.5,4700.7,0.3742]
[1759772082151,0.97096577,4701.5,4701.3,0.38264]
[1759772082350,3.72287719,4701.5,4701.3,0.38264]
[1759772083557,8.72287719,4701.5,4700.1,0.95685]
[1759772083746,0.3568,4701.3,4700.3,0.95681]
[1759772083950,0.3568,4701.1,4700.3,0.95681]
[1759772084157,0.3568,4700.9,4700.2,0.3742]
[1759772084354,0.46366577,4700.8,4700.2,0.3742]
[1759772084555,0.3568,4700.7,4700.6,0.38269]
[1759772084861,0.82046577,4700.7,4700.6,0.38269]
[1759772085658,0.46366577,4700.7,4700.5,0.7569]
[1759772085864,0.3568,4700.9,4700.8,0.75688]
[1759772086060,0.46408688,4700.9,4700.8,0.75688]
[1759772086256,0.3568,4701.7,4701.6,0.75681]
[1759772086460,0.3568,4701.7,4701.3,0.38263]
[1759772086660,0.1505,4701.5,4700.6,0.3742]
[1759772086861,0.1505,4701.5,4700.8,0.9567]
[1759772086862,0.5073,4701.5,4700.8,0.9567]
[1759772087164,0.3568,4701.4,4701.3,0.38264]
[1759772087363,3.15606461,4701.4,4700.6,0.3742]
[1759772087670,0.3568,4701.3,4701.2,0.38264]
[1759772087863,0.5718,4701.7,4701.6,0.38261]
[1759772088364,3.31499087,4701.7,4701.6,0.38261]
[1759772088759,0.1545,4701.5,4701.3,0.38263]
[1759772088962,0.3661,4701.6,4701.5,0.38262]
[1759772089160,0.215,4701.7,4701.5,0.75622]
[1759772089365,0.215,4701.7,4701.6,0.3736]
[1759772089567,0.5811,4701.7,4701.5,0.38262]
[1759772089763,0.3661,4701.6,4701.5,0.38262]
[1759772090664,0.3661,4701.6,4701.0,1.10466]
[1759772090665,0.5206,4701.5,4700.0,0.5225]
[1759772090867,1.89122757,4701.9,4701.7,0.3826]
[1759772091171,0.3661,4701.8,4701.7,0.7562]
[1759772091666,0.215,4702.4,4701.9,0.38259]
[1759772091871,0.3661,4702.3,4702.0,0.38258]
[1759772092064,0.3661,4702.2,4701.8,0.38259]
[1759772092266,0.3661,4701.9,4701.2,0.3736]
[1759772092464,0.3661,4701.7,4701.6,0.38261]
[1759772092665,0.3661,4701.7,4701.6,0.75621]
[1759772093470,0.3661,4702.3,4701.5,0.148]
[1759772093771,0.3661,4702.1,4701.7,0.3826]
[1759772093966,0.1545,4702.0,4701.0,0.148]
[1759772094171,0.3661,4701.9,4701.4,0.38262]
[1759772094375,0.3661,4701.9,4701.5,0.38262]
[1759772094574,2.95494242,4702.0,4701.1,0.95664]
[1759772094769,0.3661,4701.9,4701.1,0.95664]
[1759772094970,0.3661,4702.3,4702.2,0.38256]
[1759772095174,0.5811,4702.3,4702.2,0.38256]
[1759772095366,0.5811,4702.3,4701.9,0.75618]
[1759772095570,0.3661,4702.2,4701.6,0.38261]
[1759772095770,0.3661,4702.2,4701.8,0.38259]
[1759772096267,3.01452406,4702.3,4701.4,0.3736]
[1759772096474,0.3661,4702.2,4701.4,0.3736]
[1759772096670,0.3661,4702.2,4702.1,0.38257]
[1759772097067,0.3661,4702.2,4701.7,0.3736]
[1759772097068,3.01452406,4702.3,4701.9,0.38258]
[1759772097665,3.38062406,4702.3,4702.2,0.75616]
[1759772097871,3.38062406,4702.3,4701.7,0.3736]
[1759772098375,0.82807756,4702.2,4702.1,0.75617]
[1759772099070,0.46197756,4702.2,4701.9,0.38258]
[1759772099274,0.82807756,4702.1,4702.0,0.38258]
[1759772100076,0.46197756,4702.1,4702.0,0.75618]
[1759772100272,0.46197756,4702.1,4702.0,0.86348]
[1759772100471,0.3661,4702.5,4702.1,0.8545]
[1759772100673,0.2418,4702.3,4702.2,1.23706]
[1759772100872,1.06994247,4702.3,4702.2,1.23706]
[1759772101274,1.31114247,4702.3,4702.2,0.86346]
[1759772101975,0.46204247,4702.3,4702.2,1.23706]
[1759772102177,1.06994247,4702.3,4702.2,1.23706]
[1759772102379,0.2418,4702.1,4702.0,0.38258]
[1759772102577,1.31114247,4702.1,4702.0,0.61938]
[1759772102774,0.483,4701.2,4701.1,0.3736]
[1759772102982,1.31114247,4701.2,4701.1,0.99305]
[1759772103377,3.58914518,4701.2,4700.4,0.3736]
[1759772103583,0.1545,4701.0,4700.4,0.95678]
[1759772103773,0.3661,4700.7,4700.5,0.7563]
[1759772103983,0.3661,4700.3,4700.2,0.38513122]
[1759772104181,0.8303167,4700.3,4700.2,0.00240122]
[1759772104578,3.82851166,4700.3,4700.2,0.00240122]
[1759772104984,8.82851166,4700.3,4699.4,0.3736]
[1759772105176,0.3661,4700.1,4699.0,0.5216]
[1759772105372,0.3661,4699.9,4699.4,0.38279]
[1759772105572,0.3661,4699.7,4699.6,0.38277]
[1759772105884,1.0435975,4699.7,4699.6,0.38277]
[1759772106078,1.0435975,4699.7,4699.6,0.00273525]
[1759772106479,0.5206,4699.5,4698.6,0.38285]
[1759772106681,0.4624975,4699.4,4698.8,0.3736]
[1759772106878,0.4624975,4699.4,4698.5,0.148]
[1759772106879,0.3678192,4700.3,4700.2,0.75633]
[1759772107084,0.463657,4700.3,4700.2,0.75633]
[1759772107282,1.67962757,4701.5,4701.0,0.3736]
[1759772107283,0.1545,4701.5,4701.0,0.3736]
[1759772107581,0.1545,4701.5,4700.0,0.363]
[1759772107582,0.3661,4701.3,4701.1,0.38265]
[1759772107777,0.166,4701.8,4700.8,0.9567]
[1759772107778,0.3661,4701.8,4701.7,0.38261]
[1759772107975,0.67684979,4701.9,4701.5,0.38262]
[1759772108185,0.46184979,4701.8,4701.7,0.3736]
[1759772108493,0.3661,4701.7,4701.6,0.38261]
[1759772108690,0.82794979,4701.7,4701.6,0.75621]
[1759772108889,0.3661,4701.6,4701.5,0.00167116]
[1759772109090,0.82794979,4701.6,4701.5,0.00167116]
[1759772109295,0.46184979,4701.6,4701.5,0.37527116]
[1759772109591,0.46199918,4701.8,4701.7,0.3826]
[1759772109893,0.82809918,4701.8,4701.7,0.7562]
[1759772110187,0.82809918,4701.8,4701.5,0.38428116]
[1759772110385,0.3661,4701.6,4701.5,0.00167116]
[1759772110586,0.82809918,4701.6,4701.5,0.00167116]
[1759772110794,3.63832572,4701.6,4701.5,0.00167116]
[1759772111582,0.38262,4701.5,4700.6,0.38269]
[1759772111788,0.3661,4701.3,4700.7,0.38268]
[1759772111988,0.46199918,4701.2,4700.4,0.3736]
[1759772112196,0.1545,4701.0,4700.4,0.3736]
[1759772112490,0.1545,4701.0,4699.6,0.95693]
[1759772112491,0.3661,4700.8,4700.6,0.38269]
[1759772112792,3.19769456,4700.7,4700.6,0.00235963]
[1759772113193,3.56379456,4700.7,4700.6,0.00235963]
[1759772113688,8.56379456,4700.7,4700.6,0.00235963]
[1759772113989,0.46199918,4700.7,4700.6,0.75865963]
[1759772114294,0.5206,4702.0,4701.2,0.3736]
[1759772114494,0.36789318,4701.9,4701.8,0.3736]
[1759772114794,0.00179318,4701.9,4701.8,0.3736]
[1759772115886,0.00179318,4701.9,4701.1,0.95664]
[1759772115887,2.72574271,4701.9,4701.1,0.3736]
[1759772116186,0.3661,4701.8,4701.1,0.3736]
[1759772116387,0.00179318,4701.9,4701.8,0.3736]
[1759772116693,0.00179318,4701.9,4701.6,0.38261]
[1759772116895,0.00179318,4701.9,4701.7,0.3826]
[1759772117095,0.00179318,4701.9,4701.8,0.3736]
[1759772117785,0.36789318,4701.9,4701.7,0.3826]
[1759772117985,0.00179318,4701.9,4701.8,0.3799]
[1759772118693,0.00179318,4701.9,4701.8,5.3799]
[1759772120097,0.00179318,4701.9,4701.8,0.3799]
[1759772124393,0.36149318,4701.9,4701.8,0.3799]
[1759772125197,0.00179318,4701.9,4701.8,0.3799]
[1759772126184,0.36149318,4701.9,4701.7,0.3826]
[1759772126489,0.81939547,4701.8,4701.7,0.7625]
[1759772126690,0.45969547,4701.8,4701.7,0.7625]
[1759772127095,0.81939547,4701.8,4701.2,0.3799]
[1759772127292,0.3597,4701.4,4700.8,0.38268]
[1759772127488,0.3597,4701.2,4700.9,0.38267]
[1759772127788,0.4997,4701.0,4700.5,0.3827]
[1759772127989,0.3597,4700.8,4700.7,0.38269]
[1759772128189,0.81939547,4700.8,4700.7,0.3799]
[1759772128395,0.81939547,4700.8,4699.9,0.95689]
[1759772128586,0.81939547,4700.7,4699.9,0.95689]
[1759772128793,0.81939547,4700.7,4700.6,0.76494963]
[1759772129793,0.81939547,4700.7,4700.6,0.00235963]
[1759772130595,0.81939547,4700.7,4700.6,0.38225963]
[1759772130796,0.81939547,4700.7,4700.6,0.00235963]
[1759772131793,0.81939547,4700.7,4700.6,0.38225963]
[1759772131995,0.45969547,4700.7,4700.6,0.38225963]
[1759772132294,1.88482757,4701.4,4701.3,0.3799]
[1759772132491,1.52512757,4701.7,4701.6,0.3799]
[1759772132696,1.52692075,4701.9,4701.7,0.38261]
[1759772132891,1.52692075,4701.9,4701.8,0.3799]
[1759772133392,0.82137284,4701.9,4701.8,0.3799]
[1759772133892,0.46167284,4701.9,4701.8,0.3799]
[1759772134390,0.82137284,4701.9,4701.8,0.3799]
[1759772134585,0.46167284,4701.9,4701.7,0.3826]
[1759772134785,0.81957966,4701.8,4701.7,0.3826]
[1759772135694,0.45987966,4701.8,4701.7,0.3799]
[1759772136295,0.3618,4701.4,4700.6,0.37345963]
[1759772136483,0.1521,4701.0,4700.6,0.00235963]
[1759772136690,0.3618,4700.8,4700.7,0.75378]
[1759772136889,0.3618,4700.7,4700.6,0.00235963]
[1759772137085,0.82167966,4700.7,4700.6,0.00235963]
[1759772139497,0.82167966,4700.7,4700.6,0.37345963]
[1759772140388,0.82167966,4700.7,4700.6,0.00235963]
[1759772141397,0.82167966,4700.7,4700.6,0.37345963]
[1759772142095,0.45987966,4700.7,4700.6,0.37345963]
[1759772142296,0.215,4701.3,4700.6,0.37345963]
[1759772142297,0.46031027,4700.9,4700.6,0.00235963]
[1759772142494,0.3618,4700.7,4699.7,0.3711]
[1759772142696,0.3618,4700.4,4698.9,0.3711]
[1759772142900,0.3618,4700.2,4698.9,0.3711]
[1759772143107,0.1521,4700.0,4699.3,0.3711]
[1759772143302,0.82211027,4699.9,4699.3,0.3711]
[1759772143595,0.3618,4699.7,4699.3,0.3828]
[1759772143799,0.3618,4699.5,4699.4,0.38279]
[1759772144001,0.82211027,4699.5,4699.4,0.38279]
[1759772144193,0.82211027,4699.5,4699.4,0.75389]
[1759772144399,0.46031027,4699.5,4699.4,0.75389]
[1759772144696,0.126,4700.8,4700.2,0.38273]
[1759772144998,0.3618,4700.3,4700.2,0.75383]
[1759772145199,0.82184301,4700.3,4699.6,0.3711]
[1759772145393,0.46004301,4700.2,4700.1,0.38274]
[1759772145592,0.82184301,4700.2,4700.1,0.38274]
[1759772145801,0.46004301,4700.2,4700.1,0.75384]
[1759772145996,0.3618,4701.3,4700.3,0.3711]
[1759772146193,0.82173888,4701.2,4700.5,0.1503]
[1759772146503,0.3618,4700.9,4700.8,0.38268]
[1759772146802,0.3618,4700.8,4700.7,0.38268]
[1759772146995,0.82173888,4700.8,4700.7,0.38268]
[1759772147202,0.45993888,4700.8,4700.7,0.75378]
[1759772147502,0.3618,4701.2,4700.8,0.38267]
[1759772147702,0.45994666,4701.1,4700.8,0.75377]
[1759772147999,0.3668,4700.9,4700.8,0.75377]
[1759772148198,0.82674666,4700.9,4700.8,0.75377]
[1759772148893,0.82674666,4700.9,4698.8,33.191]
[1759772148894,3.18317646,4700.9,4699.8,0.3753]
[1759772149097,0.3668,4700.4,4699.3,0.37743308]
[1759772149399,0.1407,4701.0,4700.2,0.3753]
[1759772149400,0.45994666,4700.3,4700.2,0.3753]
[1759772149698,0.3668,4700.6,4699.5,0.1503]
[1759772149699,0.3668,4700.2,4700.0,0.38274]
[1759772149898,0.82674666,4700.1,4700.0,0.38274]
[1759772150099,0.82674666,4700.1,4700.0,0.75804]
[1759772152200,0.82674666,4700.1,4700.0,0.38274]
[1759772152892,0.45994666,4700.1,4700.0,0.75804]
[1759772153096,0.45994666,4700.4,4700.0,0.5256]
[1759772153298,0.3668,4700.9,4700.5,0.3753]
[1759772153492,0.4601562,4700.8,4700.6,0.758]
[1759772153697,0.8269562,4700.7,4700.6,0.3827]
[1759772153893,0.4601562,4700.7,4700.6,0.758]
[1759772154194,0.8269562,4700.7,4700.4,0.3827]
[1759772154396,0.3668,4700.5,4700.4,0.3827]
[1759772154599,0.8269562,4700.5,4700.4,0.3827]
[1759772155699,0.8269562,4700.5,4700.4,0.758]
[1759772155907,0.4601562,4700.5,4700.4,0.758]
[1759772156199,0.4601562,4700.5,4700.0,0.1503]
[1759772156200,0.46052382,4700.9,4700.0,0.1503]
[1759772156502,0.3668,4700.4,4700.0,0.38274]
[1759772156808,0.82734152,4700.3,4700.2,0.38273]
[1759772157103,0.46054152,4700.3,4700.2,0.75803]
[1759772157304,0.1407,4701.0,4700.5,0.3827]
[1759772157305,0.3668,4700.6,4700.5,0.3827]
[1759772157505,0.82742645,4700.6,4700.5,0.758]
[1759772157707,1.31472645,4700.6,4700.5,0.9955]
[1759772157899,1.31472645,4700.6,4700.5,0.6202]
[1759772158100,0.46062645,4700.6,4700.5,1.3846]
[1759772158405,0.46062645,4700.6,4700.5,6.3846]
[1759772159397,0.6111,4701.2,4701.1,0.62015]
[1759772159598,1.07161721,4701.2,4701.1,0.99545]
[1759772160101,1.31461721,4701.2,4701.1,0.2375]